[Event "January 9 Early 2024"]
[Site "https://www.chess.com"]
[Date "2024.01.11"]
[Round "6"]
[White "Chan, Wei Xuan Timothy"]
[Black "Krishnan, Ritvik"]
[Result "1/2-1/2"]
[Board "235"]
[TimeControl "180+1"]
[WhiteFideId "5802032"]
[BlackFideId "45055297"]
[WhiteElo "2712"]
[BlackElo "2511"]
[WhiteTeam "SGP"]
[BlackTeam "IND"]
[WhiteClock "0:00:12"]
[BlackClock "0:00:06"]

1. e4 {[%clk 0:03:00]}  c5 {[%clk 0:02:58]} 2. Nf3 {[%clk 0:03:00]}  d6 {[%clk 0:02:59]} 3. Bb5+ {[%clk 0:03:00]}  Nd7 {[%clk 0:02:56]} 4. d4 {[%clk 0:03:01]}  Nf6 {[%clk 0:02:55]} 5. Nc3 {[%clk 0:03:01]}  cxd4 {[%clk 0:02:54]} 6. Qxd4 {[%clk 0:03:02]}  e5 {[%clk 0:02:52]} 7. Qd3 {[%clk 0:03:02]}  h6 {[%clk 0:02:53]} 8. Be3 {[%clk 0:03:02]}  a6 {[%clk 0:02:48]} 9. Bxd7+ {[%clk 0:02:57]}  Bxd7 {[%clk 0:02:47]} 10. Nd2 {[%clk 0:02:58]}  b5 {[%clk 0:02:46]} 11. a4 {[%clk 0:02:57]}  b4 {[%clk 0:02:45]} 12. Nd5 {[%clk 0:02:57]}  Nxd5 {[%clk 0:02:45]} 13. exd5 {[%clk 0:02:52]}  Be7 {[%clk 0:02:23]} 14. O-O {[%clk 0:02:47]}  O-O {[%clk 0:02:22]} 15. f4 {[%clk 0:02:34]}  exf4 {[%clk 0:01:52]} 16. Bxf4 {[%clk 0:02:31]}  Qb6+ {[%clk 0:01:51]} 17. Kh1 {[%clk 0:02:28]}  Rac8 {[%clk 0:01:42]} 18. Rae1 {[%clk 0:02:24]}  Rfe8 {[%clk 0:01:41]} 19. Nc4 {[%clk 0:02:03]}  Qc5 {[%clk 0:01:36]} 20. b3 {[%clk 0:02:03]}  Bf8 {[%clk 0:01:29]} 21. Be3 {[%clk 0:01:51]}  Qc7 {[%clk 0:01:26]} 22. Qd4 {[%clk 0:01:18]}  Bxa4 {[%clk 0:01:11]} 23. Nb6 {[%clk 0:01:08]}  Bb5 {[%clk 0:01:11]} 24. Nxc8 {[%clk 0:00:45]}  Bxf1 {[%clk 0:01:10]} 25. Rxf1 {[%clk 0:00:46]}  Rxc8 {[%clk 0:01:03]} 26. Rf2 {[%clk 0:00:41]}  Qe7 {[%clk 0:00:52]} 27. h3 {[%clk 0:00:39]}  Rc3 {[%clk 0:00:51]} 28. Bf4 {[%clk 0:00:32]}  Qe1+ {[%clk 0:00:45]} 29. Kh2 {[%clk 0:00:32]}  Rc5 {[%clk 0:00:33]} 30. Bd2 {[%clk 0:00:29]}  Qb1 {[%clk 0:00:28]} 31. Qf4 {[%clk 0:00:26]}  Rc7 {[%clk 0:00:13]} 32. Bxb4 {[%clk 0:00:25]}  f6 {[%clk 0:00:04]} 33. Bxd6 {[%clk 0:00:24]}  Rxc2 {[%clk 0:00:05]} 34. Bxf8 {[%clk 0:00:19]}  Rxf2 {[%clk 0:00:04]} 35. Qxf2 {[%clk 0:00:19]}  Kxf8 {[%clk 0:00:05]} 36. Qc5+ {[%clk 0:00:19]}  Kg8 {[%clk 0:00:05]} 37. Qc4 {[%clk 0:00:15]}  Qd1 {[%clk 0:00:04]} 38. d6+ {[%clk 0:00:16]}  Kh7 {[%clk 0:00:04]} 39. Qe4+ {[%clk 0:00:16]}  Kh8 {[%clk 0:00:03]} 40. Qe7 {[%clk 0:00:13]}  Qd4 {[%clk 0:00:03]} 41. Kg3 {[%clk 0:00:07]}  Qd3+ {[%clk 0:00:02]} 42. Kf2 {[%clk 0:00:06]}  Qd2+ {[%clk 0:00:02]} 43. Kg1 {[%clk 0:00:05]}  Qd1+ {[%clk 0:00:02]} 44. Kh2 {[%clk 0:00:05]}  Qd2 {[%clk 0:00:02]} 45. Qe8+ {[%clk 0:00:05]}  Kh7 {[%clk 0:00:02]} 46. Qe4+ {[%clk 0:00:05]}  Kh8 {[%clk 0:00:02]} 47. Qa8+ {[%clk 0:00:04]}  Kh7 {[%clk 0:00:02]} 48. Qd8 {[%clk 0:00:05]}  Qf4+ {[%clk 0:00:02]} 49. Kg1 {[%clk 0:00:06]}  Qe3+ {[%clk 0:00:02]} 50. Kf1 {[%clk 0:00:06]}  Qd3+ {[%clk 0:00:02]} 51. Kf2 {[%clk 0:00:07]}  Qd2+ {[%clk 0:00:03]} 52. Kf3 {[%clk 0:00:07]}  Qd3+ {[%clk 0:00:03]} 53. Kf2 {[%clk 0:00:08]}  Qd2+ {[%clk 0:00:04]} 54. Kg3 {[%clk 0:00:09]}  Qe3+ {[%clk 0:00:04]} 55. Kh2 {[%clk 0:00:09]}  Qe5+ {[%clk 0:00:04]} 56. Kg1 {[%clk 0:00:10]}  Qe1+ {[%clk 0:00:04]} 57. Kh2 {[%clk 0:00:11]}  Qe5+ {[%clk 0:00:05]} 58. Kg1 {[%clk 0:00:11]}  Qe1+ {[%clk 0:00:06]} 59. Kh2 {[%clk 0:00:12]}  Qe5+ {[%clk 0:00:06]} 1/2-1/2

[Event "January 9 Early 2024"]
[Site "https://www.chess.com"]
[Date "2024.01.11"]
[Round "6"]
[White "Malek, Jan"]
[Black "Begunov, Konstantin"]
[Result "1-0"]
[Board "237"]
[TimeControl "180+1"]
[WhiteFideId "21864080"]
[BlackFideId "4118510"]
[WhiteElo "2715"]
[BlackElo "2479"]
[WhiteTeam "POL"]
[BlackTeam "RUS"]
[WhiteClock "0:00:06"]
[BlackClock "0:00:01"]

1. c4 {[%clk 0:03:00]}  c6 {[%clk 0:02:59]} 2. Nf3 {[%clk 0:02:58]}  d5 {[%clk 0:03:00]} 3. b3 {[%clk 0:02:58]}  Bg4 {[%clk 0:03:00]} 4. Bb2 {[%clk 0:02:58]}  Bxf3 {[%clk 0:02:59]} 5. gxf3 {[%clk 0:02:55]}  e6 {[%clk 0:02:59]} 6. Nc3 {[%clk 0:02:47]}  Nf6 {[%clk 0:02:57]} 7. e3 {[%clk 0:02:46]}  g6 {[%clk 0:02:57]} 8. Qc2 {[%clk 0:02:42]}  Bg7 {[%clk 0:02:56]} 9. Ne2 {[%clk 0:02:40]}  Nbd7 {[%clk 0:02:48]} 10. h4 {[%clk 0:02:40]}  a5 {[%clk 0:02:46]} 11. Ng3 {[%clk 0:02:37]}  h5 {[%clk 0:02:35]} 12. Bd3 {[%clk 0:02:35]}  Qe7 {[%clk 0:02:28]} 13. a3 {[%clk 0:02:20]}  Nc5 {[%clk 0:02:19]} 14. Be2 {[%clk 0:02:19]}  a4 {[%clk 0:02:17]} 15. b4 {[%clk 0:02:18]}  Nb3 {[%clk 0:02:16]} 16. Rb1 {[%clk 0:02:15]}  O-O {[%clk 0:02:14]} 17. Rg1 {[%clk 0:02:10]}  Rad8 {[%clk 0:01:56]} 18. d4 {[%clk 0:01:53]}  dxc4 {[%clk 0:01:33]} 19. Bxc4 {[%clk 0:01:52]}  Nd5 {[%clk 0:01:33]} 20. Ke2 {[%clk 0:01:42]}  Qxh4 {[%clk 0:01:26]} 21. Bxb3 {[%clk 0:01:37]}  axb3 {[%clk 0:01:25]} 22. Qxb3 {[%clk 0:01:37]}  Rfe8 {[%clk 0:01:11]} 23. Rh1 {[%clk 0:01:36]}  Qe7 {[%clk 0:01:09]} 24. Rbg1 {[%clk 0:01:36]}  Kf8 {[%clk 0:01:01]} 25. f4 {[%clk 0:01:16]}  Qd6 {[%clk 0:00:40]} 26. Ne4 {[%clk 0:01:13]}  Qc7 {[%clk 0:00:37]} 27. Qc2 {[%clk 0:01:06]}  Ne7 {[%clk 0:00:36]} 28. Ng3 {[%clk 0:00:46]}  Nf5 {[%clk 0:00:31]} 29. Qc5+ {[%clk 0:00:40]}  Qe7 {[%clk 0:00:29]} 30. Ne4 {[%clk 0:00:32]}  Kg8 {[%clk 0:00:24]} 31. Qxe7 {[%clk 0:00:23]}  Rxe7 {[%clk 0:00:25]} 32. a4 {[%clk 0:00:23]}  Rc7 {[%clk 0:00:20]} 33. Bc3 {[%clk 0:00:20]}  b6 {[%clk 0:00:20]} 34. Ra1 {[%clk 0:00:19]}  Ra8 {[%clk 0:00:19]} 35. Rhc1 {[%clk 0:00:17]}  Rca7 {[%clk 0:00:19]} 36. a5 {[%clk 0:00:17]}  bxa5 {[%clk 0:00:19]} 37. Rxa5 {[%clk 0:00:16]}  Ne7 {[%clk 0:00:18]} 38. Rca1 {[%clk 0:00:15]}  Rxa5 {[%clk 0:00:18]} 39. Rxa5 {[%clk 0:00:16]}  Rb8 {[%clk 0:00:18]} 40. Bd2 {[%clk 0:00:14]}  Nd5 {[%clk 0:00:18]} 41. Nc5 {[%clk 0:00:12]}  Nxb4 {[%clk 0:00:17]} 42. Nd7 {[%clk 0:00:12]}  Rb7 {[%clk 0:00:17]} 43. Ra8+ {[%clk 0:00:12]}  Kh7 {[%clk 0:00:16]} 44. Nc5 {[%clk 0:00:13]}  Rb5 {[%clk 0:00:16]} 45. Ra7 {[%clk 0:00:13]}  Kg8 {[%clk 0:00:15]} 46. Ne4 {[%clk 0:00:09]}  Nd5 {[%clk 0:00:14]} 47. Nd6 {[%clk 0:00:09]}  Rb2 {[%clk 0:00:14]} 48. Nxf7 {[%clk 0:00:10]}  c5 {[%clk 0:00:13]} 49. Ng5 {[%clk 0:00:07]}  cxd4 {[%clk 0:00:12]} 50. Ra8+ {[%clk 0:00:08]}  Bf8 {[%clk 0:00:12]} 51. Nxe6 {[%clk 0:00:09]}  Nc3+ {[%clk 0:00:09]} 52. Kd3 {[%clk 0:00:09]}  Nb1 {[%clk 0:00:07]} 53. Rxf8+ {[%clk 0:00:08]}  Kh7 {[%clk 0:00:08]} 54. Ba5 {[%clk 0:00:06]}  Rxf2 {[%clk 0:00:07]} 55. Bb6 {[%clk 0:00:06]}  dxe3 {[%clk 0:00:06]} 56. Ng5+ {[%clk 0:00:06]}  Kg7 {[%clk 0:00:04]} 57. Ne6+ {[%clk 0:00:06]}  Kh7 {[%clk 0:00:03]} 58. Bd4 {[%clk 0:00:07]}  g5 {[%clk 0:00:03]} 59. f5 {[%clk 0:00:06]}  Rd2+ {[%clk 0:00:01]} 60. Kxe3 {[%clk 0:00:06]} 1-0

[Event "January 9 Early 2024"]
[Site "https://www.chess.com"]
[Date "2024.01.11"]
[Round "6"]
[White "Batsiashvili, Nino"]
[Black "Soraas, Torben"]
[Result "1-0"]
[Board "240"]
[TimeControl "180+1"]
[WhiteFideId "13602993"]
[BlackFideId "1503529"]
[WhiteElo "2515"]
[BlackElo "2276"]
[WhiteTeam "GEO"]
[BlackTeam "NOR"]
[WhiteClock "0:00:19"]
[BlackClock "0:00:07"]

1. b3 {[%clk 0:03:00]}  b6 {[%clk 0:02:58]} 2. Bb2 {[%clk 0:03:01]}  Bb7 {[%clk 0:02:58]} 3. Nf3 {[%clk 0:03:00]}  Nf6 {[%clk 0:02:59]} 4. e3 {[%clk 0:03:01]}  e6 {[%clk 0:02:59]} 5. c4 {[%clk 0:03:01]}  c5 {[%clk 0:02:59]} 6. Nc3 {[%clk 0:03:01]}  Be7 {[%clk 0:02:57]} 7. Be2 {[%clk 0:03:00]}  O-O {[%clk 0:02:57]} 8. d4 {[%clk 0:02:59]}  cxd4 {[%clk 0:02:55]} 9. exd4 {[%clk 0:03:00]}  d6 {[%clk 0:02:46]} 10. d5 {[%clk 0:02:51]}  e5 {[%clk 0:02:45]} 11. O-O {[%clk 0:02:51]}  Nbd7 {[%clk 0:02:40]} 12. b4 {[%clk 0:02:50]}  a6 {[%clk 0:02:26]} 13. Re1 {[%clk 0:02:31]}  Rc8 {[%clk 0:02:26]} 14. Bf1 {[%clk 0:02:32]}  Re8 {[%clk 0:02:21]} 15. Rc1 {[%clk 0:02:19]}  Nf8 {[%clk 0:02:20]} 16. a4 {[%clk 0:02:17]}  Ng6 {[%clk 0:02:20]} 17. a5 {[%clk 0:02:00]}  bxa5 {[%clk 0:02:18]} 18. b5 {[%clk 0:02:01]}  Nd7 {[%clk 0:02:10]} 19. Ba3 {[%clk 0:01:54]}  Nc5 {[%clk 0:02:06]} 20. Na4 {[%clk 0:01:36]}  Qd7 {[%clk 0:01:33]} 21. Nxc5 {[%clk 0:01:34]}  dxc5 {[%clk 0:01:34]} 22. bxa6 {[%clk 0:01:32]}  Bxa6 {[%clk 0:01:32]} 23. Nxe5 {[%clk 0:01:32]}  Nxe5 {[%clk 0:01:30]} 24. Rxe5 {[%clk 0:01:33]}  Bf6 {[%clk 0:01:25]} 25. Rxe8+ {[%clk 0:01:33]}  Qxe8 {[%clk 0:01:21]} 26. Bd3 {[%clk 0:01:22]}  Bd4 {[%clk 0:01:17]} 27. Rb1 {[%clk 0:01:23]}  Qe7 {[%clk 0:01:06]} 28. Bb2 {[%clk 0:01:18]}  Qf6 {[%clk 0:00:55]} 29. Bxd4 {[%clk 0:01:17]}  Qxd4 {[%clk 0:00:51]} 30. Qc2 {[%clk 0:01:11]}  g6 {[%clk 0:00:49]} 31. h3 {[%clk 0:01:09]}  Ra8 {[%clk 0:00:45]} 32. Rd1 {[%clk 0:01:03]}  Qf6 {[%clk 0:00:36]} 33. d6 {[%clk 0:01:01]}  Bc8 {[%clk 0:00:35]} 34. Be4 {[%clk 0:00:59]}  Ra7 {[%clk 0:00:34]} 35. Bc6 {[%clk 0:00:53]}  Bd7 {[%clk 0:00:32]} 36. Qa4 {[%clk 0:00:52]}  Qe6 {[%clk 0:00:26]} 37. Bxd7 {[%clk 0:00:39]}  Rxd7 {[%clk 0:00:27]} 38. Qc6 {[%clk 0:00:30]}  a4 {[%clk 0:00:27]} 39. Qxc5 {[%clk 0:00:31]}  a3 {[%clk 0:00:21]} 40. Qxa3 {[%clk 0:00:30]}  Qxc4 {[%clk 0:00:20]} 41. Qa8+ {[%clk 0:00:27]}  Kg7 {[%clk 0:00:18]} 42. Qe8 {[%clk 0:00:27]}  Qe6 {[%clk 0:00:16]} 43. Qxe6 {[%clk 0:00:23]}  fxe6 {[%clk 0:00:17]} 44. f4 {[%clk 0:00:20]}  Kf6 {[%clk 0:00:17]} 45. Kf2 {[%clk 0:00:21]}  e5 {[%clk 0:00:17]} 46. Kf3 {[%clk 0:00:20]}  exf4 {[%clk 0:00:15]} 47. Kxf4 {[%clk 0:00:21]}  h6 {[%clk 0:00:15]} 48. g4 {[%clk 0:00:11]}  Ke6 {[%clk 0:00:15]} 49. g5 {[%clk 0:00:09]}  h5 {[%clk 0:00:12]} 50. Ke4 {[%clk 0:00:09]}  Rf7 {[%clk 0:00:12]} 51. d7 {[%clk 0:00:09]}  Rxd7 {[%clk 0:00:10]} 52. Rxd7 {[%clk 0:00:09]}  Kxd7 {[%clk 0:00:10]} 53. Ke5 {[%clk 0:00:10]}  Ke7 {[%clk 0:00:11]} 54. h4 {[%clk 0:00:11]}  Kf7 {[%clk 0:00:08]} 55. Kd6 {[%clk 0:00:11]}  Kf8 {[%clk 0:00:05]} 56. Ke6 {[%clk 0:00:12]}  Kg7 {[%clk 0:00:05]} 57. Ke7 {[%clk 0:00:12]}  Kg8 {[%clk 0:00:02]} 58. Kf6 {[%clk 0:00:13]}  Kh7 {[%clk 0:00:02]} 59. Kf7 {[%clk 0:00:13]}  Kh8 {[%clk 0:00:03]} 60. Kxg6 {[%clk 0:00:14]}  Kg8 {[%clk 0:00:03]} 61. Kxh5 {[%clk 0:00:15]}  Kh8 {[%clk 0:00:04]} 62. Kh6 {[%clk 0:00:15]}  Kg8 {[%clk 0:00:04]} 63. g6 {[%clk 0:00:16]}  Kh8 {[%clk 0:00:05]} 64. g7+ {[%clk 0:00:16]}  Kg8 {[%clk 0:00:06]} 65. h5 {[%clk 0:00:17]}  Kf7 {[%clk 0:00:06]} 66. Kh7 {[%clk 0:00:17]}  Kf6 {[%clk 0:00:06]} 67. g8=Q {[%clk 0:00:18]}  Kf5 {[%clk 0:00:07]} 68. h6 {[%clk 0:00:19]} 1-0

[Event "January 9 Early 2024"]
[Site "https://www.chess.com"]
[Date "2024.01.11"]
[Round "6"]
[White "Dushyant Sharma"]
[Black "Tristan, Leonardo"]
[Result "0-1"]
[Board "243"]
[TimeControl "180+1"]
[WhiteFideId "25065130"]
[BlackFideId "113816"]
[WhiteElo "2507"]
[BlackElo "2737"]
[WhiteTeam "IND"]
[BlackTeam "ARG"]
[WhiteClock "0:00:05"]
[BlackClock "0:00:06"]

1. e4 {[%clk 0:03:00]}  d5 {[%clk 0:03:00]} 2. exd5 {[%clk 0:02:59]}  Qxd5 {[%clk 0:03:01]} 3. Nc3 {[%clk 0:03:00]}  Qa5 {[%clk 0:03:01]} 4. g3 {[%clk 0:03:00]}  Nf6 {[%clk 0:02:59]} 5. Bg2 {[%clk 0:03:00]}  e5 {[%clk 0:03:00]} 6. Nge2 {[%clk 0:03:01]}  Bd6 {[%clk 0:02:52]} 7. d3 {[%clk 0:03:01]}  c6 {[%clk 0:02:51]} 8. Be3 {[%clk 0:02:58]}  O-O {[%clk 0:02:48]} 9. Qd2 {[%clk 0:02:58]}  Ng4 {[%clk 0:02:42]} 10. Ne4 {[%clk 0:02:55]}  Bb4 {[%clk 0:02:31]} 11. c3 {[%clk 0:02:52]}  Nxe3 {[%clk 0:02:31]} 12. Qxe3 {[%clk 0:02:40]}  Be7 {[%clk 0:02:31]} 13. O-O {[%clk 0:02:36]}  Qb6 {[%clk 0:02:20]} 14. d4 {[%clk 0:02:30]}  Nd7 {[%clk 0:02:11]} 15. b4 {[%clk 0:02:27]}  Re8 {[%clk 0:02:04]} 16. Rfe1 {[%clk 0:02:12]}  Bf8 {[%clk 0:02:02]} 17. Nc5 {[%clk 0:02:00]}  a5 {[%clk 0:01:29]} 18. Rab1 {[%clk 0:01:41]}  axb4 {[%clk 0:01:22]} 19. Rxb4 {[%clk 0:01:41]}  Qc7 {[%clk 0:01:16]} 20. Rb2 {[%clk 0:01:26]}  Nxc5 {[%clk 0:01:16]} 21. dxc5 {[%clk 0:01:27]}  Ra5 {[%clk 0:01:17]} 22. c4 {[%clk 0:01:13]}  Bxc5 {[%clk 0:01:15]} 23. Qe4 {[%clk 0:01:13]}  f5 {[%clk 0:01:11]} 24. Qh4 {[%clk 0:01:11]}  Ra3 {[%clk 0:01:01]} 25. Nf4 {[%clk 0:01:00]}  Be7 {[%clk 0:00:35]} 26. Qh5 {[%clk 0:00:59]}  Rf8 {[%clk 0:00:35]} 27. Rbe2 {[%clk 0:00:56]}  Bf6 {[%clk 0:00:25]} 28. Nh3 {[%clk 0:00:47]}  g6 {[%clk 0:00:22]} 29. Qh6 {[%clk 0:00:46]}  Bg7 {[%clk 0:00:22]} 30. Qh4 {[%clk 0:00:34]}  h6 {[%clk 0:00:18]} 31. Kh1 {[%clk 0:00:32]}  Be6 {[%clk 0:00:15]} 32. Ng1 {[%clk 0:00:30]}  Ra4 {[%clk 0:00:14]} 33. Rc2 {[%clk 0:00:19]}  b5 {[%clk 0:00:14]} 34. Nf3 {[%clk 0:00:17]}  Bxc4 {[%clk 0:00:12]} 35. Qh3 {[%clk 0:00:15]}  e4 {[%clk 0:00:10]} 36. Nd2 {[%clk 0:00:14]}  Bd5 {[%clk 0:00:09]} 37. Rec1 {[%clk 0:00:13]}  Qf7 {[%clk 0:00:09]} 38. Nb3 {[%clk 0:00:12]}  Rc4 {[%clk 0:00:08]} 39. Qh4 {[%clk 0:00:08]}  g5 {[%clk 0:00:05]} 40. Qh3 {[%clk 0:00:06]}  Be6 {[%clk 0:00:06]} 41. Rxc4 {[%clk 0:00:03]}  Bxc4 {[%clk 0:00:05]} 42. Nd2 {[%clk 0:00:02]}  Be6 {[%clk 0:00:05]} 43. Nf1 {[%clk 0:00:02]}  f4 {[%clk 0:00:06]} 44. g4 {[%clk 0:00:02]}  f3 {[%clk 0:00:06]} 45. Bxf3 {[%clk 0:00:02]}  exf3 {[%clk 0:00:06]} 46. Ne3 {[%clk 0:00:02]}  c5 {[%clk 0:00:04]} 47. Qg3 {[%clk 0:00:02]}  Bxa2 {[%clk 0:00:04]} 48. Rxc5 {[%clk 0:00:02]}  Bc4 {[%clk 0:00:04]} 49. h4 {[%clk 0:00:02]}  Qf4 {[%clk 0:00:04]} 50. Qh3 {[%clk 0:00:01]}  Qxe3 {[%clk 0:00:03]} 51. fxe3 {[%clk 0:00:02]}  f2 {[%clk 0:00:04]} 52. Rxc4 {[%clk 0:00:02]}  f1=Q+ {[%clk 0:00:04]} 53. Qxf1 {[%clk 0:00:03]}  Rxf1+ {[%clk 0:00:04]} 54. Kg2 {[%clk 0:00:04]}  bxc4 {[%clk 0:00:05]} 55. Kxf1 {[%clk 0:00:04]}  gxh4 {[%clk 0:00:05]} 56. Ke2 {[%clk 0:00:05]}  h3 {[%clk 0:00:06]} 57. Kf3 {[%clk 0:00:05]}  c3 {[%clk 0:00:06]} 0-1

[Event "January 9 Early 2024"]
[Site "https://www.chess.com"]
[Date "2024.01.11"]
[Round "6"]
[White "Kleibel, Uwe"]
[Black "Laddha, Shubh Jayesh"]
[Result "1/2-1/2"]
[Board "244"]
[TimeControl "180+1"]
[WhiteFideId "1270982"]
[BlackFideId "30942799"]
[WhiteElo "2378"]
[BlackElo "2563"]
[WhiteTeam "GER"]
[BlackTeam "USA"]
[WhiteClock "0:00:24"]
[BlackClock "0:00:22"]

1. e4 {[%clk 0:03:00]}  e5 {[%clk 0:02:58]} 2. Nf3 {[%clk 0:03:00]}  Nc6 {[%clk 0:02:58]} 3. d4 {[%clk 0:03:01]}  exd4 {[%clk 0:02:58]} 4. Nxd4 {[%clk 0:03:02]}  Nf6 {[%clk 0:02:58]} 5. Nxc6 {[%clk 0:03:01]}  bxc6 {[%clk 0:02:58]} 6. Nd2 {[%clk 0:02:59]}  Bc5 {[%clk 0:02:56]} 7. Bd3 {[%clk 0:02:55]}  d5 {[%clk 0:02:55]} 8. O-O {[%clk 0:02:53]}  O-O {[%clk 0:02:54]} 9. c4 {[%clk 0:02:47]}  Ba6 {[%clk 0:02:48]} 10. Qc2 {[%clk 0:02:37]}  Re8 {[%clk 0:02:00]} 11. a3 {[%clk 0:02:15]}  h6 {[%clk 0:01:45]} 12. b4 {[%clk 0:02:15]}  Bd4 {[%clk 0:01:45]} 13. Rb1 {[%clk 0:02:14]}  dxe4 {[%clk 0:01:41]} 14. Nxe4 {[%clk 0:02:14]}  Nxe4 {[%clk 0:01:40]} 15. Bxe4 {[%clk 0:02:14]}  Bxc4 {[%clk 0:01:40]} 16. Bxc6 {[%clk 0:01:51]}  Bxf1 {[%clk 0:01:35]} 17. Kxf1 {[%clk 0:01:43]}  Qh4 {[%clk 0:01:11]} 18. h3 {[%clk 0:01:28]}  Qf6 {[%clk 0:00:22]} 19. Bxa8 {[%clk 0:01:22]}  Rxa8 {[%clk 0:00:15]} 20. Bb2 {[%clk 0:01:15]}  Rd8 {[%clk 0:00:11]} 21. Bxd4 {[%clk 0:00:51]}  Qxd4 {[%clk 0:00:11]} 22. Re1 {[%clk 0:00:46]}  Qd6 {[%clk 0:00:11]} 23. Qe4 {[%clk 0:00:42]}  Qa6+ {[%clk 0:00:11]} 24. Kg1 {[%clk 0:00:39]}  Qxa3 {[%clk 0:00:11]} 25. Qe7 {[%clk 0:00:39]}  Qd3 {[%clk 0:00:06]} 26. Qxc7 {[%clk 0:00:35]}  a6 {[%clk 0:00:06]} 27. Qc6 {[%clk 0:00:25]}  Qd2 {[%clk 0:00:06]} 28. Qe4 {[%clk 0:00:17]}  Qd6 {[%clk 0:00:05]} 29. Ra1 {[%clk 0:00:14]}  g6 {[%clk 0:00:05]} 30. Qe2 {[%clk 0:00:13]}  Rb8 {[%clk 0:00:05]} 31. Qxa6 {[%clk 0:00:12]}  Qxb4 {[%clk 0:00:05]} 32. Qe2 {[%clk 0:00:11]}  h5 {[%clk 0:00:05]} 33. Re1 {[%clk 0:00:11]}  Qf8 {[%clk 0:00:06]} 34. g3 {[%clk 0:00:10]}  Rd8 {[%clk 0:00:06]} 35. Kg2 {[%clk 0:00:11]}  Qd6 {[%clk 0:00:07]} 36. h4 {[%clk 0:00:11]}  Qd5+ {[%clk 0:00:07]} 37. Qe4 {[%clk 0:00:11]}  Qd2 {[%clk 0:00:07]} 38. Qe2 {[%clk 0:00:11]}  Qd6 {[%clk 0:00:08]} 39. Qe5 {[%clk 0:00:12]}  Qxe5 {[%clk 0:00:08]} 40. Rxe5 {[%clk 0:00:13]}  Kg7 {[%clk 0:00:09]} 41. Re2 {[%clk 0:00:13]}  Kf6 {[%clk 0:00:09]} 42. Ra2 {[%clk 0:00:14]}  Rd5 {[%clk 0:00:10]} 43. Ra6+ {[%clk 0:00:14]}  Ke7 {[%clk 0:00:10]} 44. Ra2 {[%clk 0:00:15]}  Ke6 {[%clk 0:00:11]} 45. Re2+ {[%clk 0:00:16]}  Re5 {[%clk 0:00:11]} 46. Ra2 {[%clk 0:00:17]}  Kf5 {[%clk 0:00:11]} 47. Rd2 {[%clk 0:00:17]}  Ke4 {[%clk 0:00:11]} 48. Re2+ {[%clk 0:00:17]}  Kd5 {[%clk 0:00:11]} 49. Ra2 {[%clk 0:00:18]}  Ke6 {[%clk 0:00:11]} 50. Ra7 {[%clk 0:00:18]}  Rd5 {[%clk 0:00:11]} 51. Ra6+ {[%clk 0:00:18]}  Ke5 {[%clk 0:00:11]} 52. Ra7 {[%clk 0:00:19]}  Kf6 {[%clk 0:00:12]} 53. Ra6+ {[%clk 0:00:19]}  Kg7 {[%clk 0:00:12]} 54. Ra7 {[%clk 0:00:20]}  Rf5 {[%clk 0:00:13]} 55. Rb7 {[%clk 0:00:20]}  Rf6 {[%clk 0:00:14]} 56. Ra7 {[%clk 0:00:20]}  Rf5 {[%clk 0:00:14]} 57. Rb7 {[%clk 0:00:21]}  Ra5 {[%clk 0:00:15]} 58. Rc7 {[%clk 0:00:21]}  Rb5 {[%clk 0:00:16]} 59. Ra7 {[%clk 0:00:21]}  Rb3 {[%clk 0:00:16]} 60. Rc7 {[%clk 0:00:21]}  Rb8 {[%clk 0:00:16]} 61. Ra7 {[%clk 0:00:21]}  Rc8 {[%clk 0:00:17]} 62. Rb7 {[%clk 0:00:21]}  Ra8 {[%clk 0:00:17]} 63. Rc7 {[%clk 0:00:21]}  Kf6 {[%clk 0:00:17]} 64. Rb7 {[%clk 0:00:21]}  Ke6 {[%clk 0:00:18]} 65. Rc7 {[%clk 0:00:22]}  Rd8 {[%clk 0:00:19]} 66. Rb7 {[%clk 0:00:22]}  Rd7 {[%clk 0:00:19]} 67. Rb6+ {[%clk 0:00:22]}  Rd6 {[%clk 0:00:20]} 68. Rb7 {[%clk 0:00:23]}  Rd7 {[%clk 0:00:20]} 69. Rb6+ {[%clk 0:00:23]}  Rd6 {[%clk 0:00:21]} 70. Rb7 {[%clk 0:00:24]}  Rd7 {[%clk 0:00:22]} 1/2-1/2

[Event "January 9 Early 2024"]
[Site "https://www.chess.com"]
[Date "2024.01.11"]
[Round "6"]
[White "Lymar, Vladislav"]
[Black "Chemin, Justo Reinaldo"]
[Result "1-0"]
[Board "247"]
[TimeControl "180+1"]
[WhiteFideId "14162180"]
[BlackFideId "2101580"]
[WhiteElo "2537"]
[BlackElo "2243"]
[WhiteTeam "UKR"]
[BlackTeam "BRA"]
[WhiteClock "0:00:04"]
[BlackClock "0:00:02"]

1. d4 {[%clk 0:03:00]}  e6 {[%clk 0:02:59]} 2. c4 {[%clk 0:02:59]}  d5 {[%clk 0:03:00]} 3. cxd5 {[%clk 0:02:59]}  exd5 {[%clk 0:02:59]} 4. Bf4 {[%clk 0:02:59]}  Nf6 {[%clk 0:02:57]} 5. e3 {[%clk 0:03:00]}  c6 {[%clk 0:02:56]} 6. Bd3 {[%clk 0:03:00]}  Bd6 {[%clk 0:02:55]} 7. Bxd6 {[%clk 0:03:00]}  Qxd6 {[%clk 0:02:54]} 8. Nc3 {[%clk 0:03:00]}  O-O {[%clk 0:02:53]} 9. h3 {[%clk 0:02:57]}  Re8 {[%clk 0:02:51]} 10. Qc2 {[%clk 0:02:55]}  Nbd7 {[%clk 0:02:45]} 11. Nf3 {[%clk 0:02:56]}  Nf8 {[%clk 0:02:39]} 12. O-O {[%clk 0:02:56]}  Ng6 {[%clk 0:02:36]} 13. Rab1 {[%clk 0:02:52]}  a5 {[%clk 0:02:35]} 14. a3 {[%clk 0:02:48]}  Bd7 {[%clk 0:02:28]} 15. Rfc1 {[%clk 0:02:43]}  b5 {[%clk 0:02:20]} 16. Re1 {[%clk 0:02:28]}  Re7 {[%clk 0:02:13]} 17. e4 {[%clk 0:02:16]}  dxe4 {[%clk 0:02:10]} 18. Nxe4 {[%clk 0:02:15]}  Nxe4 {[%clk 0:02:10]} 19. Rxe4 {[%clk 0:02:10]}  Rae8 {[%clk 0:02:02]} 20. Rxe7 {[%clk 0:01:52]}  Rxe7 {[%clk 0:02:01]} 21. Rd1 {[%clk 0:01:52]}  Qf4 {[%clk 0:01:49]} 22. Qc5 {[%clk 0:01:37]}  Bxh3 {[%clk 0:01:15]} 23. Bxg6 {[%clk 0:01:16]}  Qg4 {[%clk 0:01:04]} 24. Qg5 {[%clk 0:01:08]}  hxg6 {[%clk 0:00:46]} 25. Rc1 {[%clk 0:00:55]}  Qxg5 {[%clk 0:00:44]} 26. Nxg5 {[%clk 0:00:53]}  Bd7 {[%clk 0:00:44]} 27. Kf1 {[%clk 0:00:52]}  f6 {[%clk 0:00:44]} 28. Nf3 {[%clk 0:00:45]}  Re4 {[%clk 0:00:40]} 29. Rc5 {[%clk 0:00:42]}  g5 {[%clk 0:00:40]} 30. Nd2 {[%clk 0:00:25]}  Rxd4 {[%clk 0:00:39]} 31. Ke2 {[%clk 0:00:26]}  Rd5 {[%clk 0:00:32]} 32. Rxd5 {[%clk 0:00:26]}  cxd5 {[%clk 0:00:32]} 33. Kd3 {[%clk 0:00:20]}  Kf7 {[%clk 0:00:31]} 34. Nb3 {[%clk 0:00:18]}  a4 {[%clk 0:00:28]} 35. Nc5 {[%clk 0:00:18]}  Ke7 {[%clk 0:00:27]} 36. Kd4 {[%clk 0:00:18]}  Bc6 {[%clk 0:00:24]} 37. Nd3 {[%clk 0:00:15]}  Kd6 {[%clk 0:00:23]} 38. Nb4 {[%clk 0:00:10]}  f5 {[%clk 0:00:19]} 39. Nc2 {[%clk 0:00:09]}  g6 {[%clk 0:00:17]} 40. g3 {[%clk 0:00:09]}  f4 {[%clk 0:00:14]} 41. Ne1 {[%clk 0:00:09]}  Ke6 {[%clk 0:00:07]} 42. Nd3 {[%clk 0:00:10]}  Kf5 {[%clk 0:00:06]} 43. Kc5 {[%clk 0:00:09]}  Bb7 {[%clk 0:00:05]} 44. Kxb5 {[%clk 0:00:08]}  fxg3 {[%clk 0:00:05]} 45. fxg3 {[%clk 0:00:08]}  Kg4 {[%clk 0:00:05]} 46. Kxa4 {[%clk 0:00:06]}  Kxg3 {[%clk 0:00:05]} 47. Kb4 {[%clk 0:00:04]}  Kh2 {[%clk 0:00:05]} 48. Ne5 {[%clk 0:00:04]}  Bc8 {[%clk 0:00:04]} 49. Nxg6 {[%clk 0:00:03]}  g4 {[%clk 0:00:04]} 50. Kc3 {[%clk 0:00:03]}  g3 {[%clk 0:00:04]} 51. Nf4 {[%clk 0:00:04]}  g2 {[%clk 0:00:03]} 52. Nxg2 {[%clk 0:00:04]}  Kxg2 {[%clk 0:00:04]} 53. Kd4 {[%clk 0:00:03]}  Kf3 {[%clk 0:00:05]} 54. b4 {[%clk 0:00:02]}  Ke2 {[%clk 0:00:06]} 55. a4 {[%clk 0:00:03]}  Kd2 {[%clk 0:00:06]} 56. b5 {[%clk 0:00:03]}  Bd7 {[%clk 0:00:04]} 57. Kxd5 {[%clk 0:00:02]}  Kc3 {[%clk 0:00:03]} 58. Kc5 {[%clk 0:00:02]}  Kb3 {[%clk 0:00:03]} 59. a5 {[%clk 0:00:03]}  Ka4 {[%clk 0:00:02]} 60. a6 {[%clk 0:00:04]}  Bxb5 {[%clk 0:00:02]} 61. a7 {[%clk 0:00:04]} 1-0